{"text_format":"1","workbook":"xlsx","n_sheets":2,"sheets":["Kalibreringsbevis","Temperaturregistrering"],"not_rendered":{"charts":0,"images":1,"macros":1,"external_links":0,"defined_names":0,"comments":0,"pivot_tables":0},"unopened":[],"bounds":{"document_bytes":16777216,"sheet_cells":100000,"rows_first":2000,"rows_last":500,"rows_between":2000,"halvings":0,"cell_chars":16384,"cell_head_chars":4096},"cells_cut":0,"cells_raw":0,"read":"whole","date_system":"1900"}

{"sheet":"Kalibreringsbevis","index":0,"n_rows":13,"n_cols":6,"rows_kept":13,"cut":false,"hidden":false,"merged":[[3,3,3,4]]}
["EQSDokument 28339 v 1.12"]
["Referansetermometer, CALIBRATION RESULTS"]
["Kalibreringsdato:","2025-12-18"]
["ID ved kalibreringslab:",433715,"MTA Nr:","14499 m/sensor SerieNr 1-214293"]
[]
["Måleområde\nNavn","Sann temperatur","Avlest temperatur","Avvik","Leverandørs spesifikasjoner","Måleusikkerhet (k=2)"]
["Fryser -80 ⁰C",-77.97,-78,{"$f":"C7-B7","v":-3.0000000000001137E-2},0.2,0.03]
["Fryser -40 ⁰C",-39.97,-39.979999999999997,-9.9999999999980105E-3,0.05,0.02]
["Fryser -20 ⁰C",-19.98,-19.989999999999998,-9.9999999999980105E-3,0.05,0.02]
["Kjøleskap 0 ⁰C",0.01,-0.01,{"$f":"C10-B10","v":-0.02},0.06,0.02]
["Romtemperatur 20 ⁰C",20.03,20.059999999999999,2.9999999999997584E-2,0.06,0.03]
["Inkubator 37 ⁰C",36.97,37.020000000000003,5.0000000000004263E-2,7.0000000000000007E-2,0.02]
["Autoklave 120 ⁰C",119.96,119.97,1.0000000000005116E-2,0.1,0.02]

{"sheet":"Temperaturregistrering","index":1,"n_rows":29,"n_cols":8,"rows_kept":29,"cut":false,"hidden":false,"merged":[[25,0,25,1]]}
[{"$f":"Kalibreringsbevis!A1","v":"EQSDokument 28339 v 1.12"}]
["Temperaturkontroll av brukstermometeret knyttet til:",null,null,null,null,null,null,"Fryser -80 ⁰C"]
["Instrument-navn:",null,null,null,null,null,null,"Fryser -40 ⁰C"]
["TEK nr:",null,null,null,null,null,null,"Fryser -20 ⁰C"]
[null,null,null,null,null,null,null,"Kjøleskap 0 ⁰C"]
["Dato for disse målingene:",null,null,null,null,null,null,"Romtemperatur 20 ⁰C"]
["Identitet til brukstermometer:",null,null,null,null,null,null,"Inkubator 37 ⁰C"]
["MTA-nr referansetermometer:",{"$f":"Kalibreringsbevis!D4","v":"14499 m/sensor SerieNr 1-214293"},null,null,null,null,null,"Autoklave 120 ⁰C"]
["Utført (Sign):"]
[]
[null,"Brukstermometer","Referansetermometer"]
["Måling 1"]
["Måling 2"]
["Måling 3"]
["Gjennomsnitt",{"$f":"AVERAGE(B12:B14)","v":{"$error":"#DIV/0!"}},{"$f":"AVERAGE(C12:C14)","v":{"$error":"#DIV/0!"}}]
[]
["∆ Referanse- og brukstermometer",{"$f":"C15-B15","v":{"$error":"#DIV/0!"}},"Velg temperaturtype i liste:"]
["Korreksjon til referansetermometer i aktuell måleområde",{"$f":"IF(C18=Kalibreringsbevis!A7,Kalibreringsbevis!D7,IF(C18=Kalibreringsbevis!A9,Kalibreringsbevis!D9,IF(C18=Kalibreringsbevis!A10,Kalibreringsbevis!D10,IF(C18=Kalibreringsbevis!A11,Kalibreringsbevis!D11,IF(C18=Kalibreringsbevis!A12,Kalibreringsbevis!D12,IF(C18=Kalibreringsbevis!A13,Kalibreringsbevis!D13,IF(C18=Kalibreringsbevis!A8,Kalibreringsbevis!D8,\"\")))))))","v":-0.02},"Kjøleskap 0 ⁰C"]
["Korreksjon til brukstermometeret",{"$f":"B17+B18","v":{"$error":"#DIV/0!"}}]
["Måleusikkerhet brukstermometer"]
["Måleusikkerhet referansetermometer",{"$f":"IF(C18=Kalibreringsbevis!A7,Kalibreringsbevis!F7,IF(C18=Kalibreringsbevis!A8,Kalibreringsbevis!F8,IF(C18=Kalibreringsbevis!A9,Kalibreringsbevis!F9,IF(C18=Kalibreringsbevis!A10,Kalibreringsbevis!F10,IF(C18=Kalibreringsbevis!A11,Kalibreringsbevis!F11,IF(C18=Kalibreringsbevis!A12,Kalibreringsbevis!F12,IF(C18=Kalibreringsbevis!A13,Kalibreringsbevis!F13,IF(C18=Kalibreringsbevis!#REF!,Kalibreringsbevis!#REF!,\"\"))))))))","v":0.02}]
["Samlet måleusikkerhet",{"$f":"SQRT(B20^2+B21^2)","v":0.02}]
[null,null,"Nedre grense","Øvre grense"]
["Ønsket temperatur",null,{"$f":"B24-B25","v":0},{"$f":"B24+B25","v":0}]
["Aksjonsgrense"]
["Korrigering pga måleusikkerhet og nøyaktighet",null,"Nedre grense","Øvre grense","Aksjonsgrense"]
["Ønsket temperatur",{"$f":"B24-B19","v":{"$error":"#DIV/0!"}},{"$f":"B27-E27","v":{"$error":"#DIV/0!"}},{"$f":"B27+E27","v":{"$error":"#DIV/0!"}},{"$f":"ABS(B25-B22)","v":0.02}]
[null,{"$f":"IF(ABS(B27-B24)<B25*0.2,B24,B27)","v":{"$error":"#DIV/0!"}},{"$f":"B28-E28","v":{"$error":"#DIV/0!"}},{"$f":"B28+E28","v":{"$error":"#DIV/0!"}},{"$f":"IF(ABS(B27-B24)<B25*0.2,B25,ABS(B25-B22))","v":{"$error":"#DIV/0!"}}]
["Kommentarer:"]